bitfinex-derivatives/quotes_ETHF0:USTF0_20240907
["timestamp","ask_amount","ask_price","bid_price","bid_amount"]
[1725699076388,0.43624,2292.7,2292.5,0.3814]
[1725699076789,3.644,2292.9,2292.5,0.3814]
[1725699076987,0.43624,2292.7,2292.5,0.3814]
[1725699077186,0.43625,2292.6,2292.5,0.3814]
[1725699077793,0.01604322,2292.6,2292.5,0.3814]
[1725699077989,0.43623,2292.7,2292.5,0.3814]
[1725699078591,0.01604309,2292.6,2292.5,0.3814]
[1725699078898,0.45229309,2292.6,2292.5,0.3814]
[1725699079192,0.43625,2292.6,2292.5,0.3814]
[1725699079399,0.452293,2292.6,2292.5,0.3814]
[1725699079589,0.43627,2292.5,2292.4,0.7548]
[1725699079791,0.43627,2292.5,2292.4,1.1137]
[1725699081295,1.26,2292.8,2292.4,1.1137]
[1725699081490,0.01604243,2292.7,2292.4,1.1137]
[1725699082292,0.43623,2292.7,2292.5,0.43626]
[1725699084099,0.43623,2292.7,2292.4,1.54998]
[1725699086297,1.69622,2292.8,2292.5,0.43626]
[1725699086602,0.43622,2292.8,2292.6,0.43625]
[1725699087191,4.29815,2293.2,2292.4,5.46034477]
[1725699087192,3.64395,2293.2,2292.9,0.43618]
[1725699087392,3.64395,2293.2,2293.0,1.1369]
[1725699087700,0.43615,2293.1,2293.0,1.1369]
[1725699088705,1.69615,2293.1,2293.0,1.1369]
[1725699089097,1.69615,2293.1,2293.0,0.7559]
[1725699089294,1.69615,2293.1,2293.0,0.3783]
[1725699093604,0.43618,2293.0,2292.8,0.7412]
[1725699093998,0.43619,2293.0,2292.8,0.7412]
[1725699095503,0.81969,2293.0,2292.8,0.7412]
[1725699095903,0.43619,2292.9,2292.8,0.7412]
[1725699096097,0.43619,2292.9,2292.8,0.3712]
[1725699096406,0.43621,2292.8,2292.7,0.3862]
[1725699097806,0.3835,2293.0,2292.7,0.3862]
[1725699098004,0.43621,2292.9,2292.7,0.3862]
[1725699098504,0.43621,2292.8,2292.7,0.3862]
[1725699100108,0.43623,2292.7,2292.6,1.13884477]
[1725699101307,4.79783,2292.7,2292.6,1.13884477]
[1725699101509,0.43623,2292.7,2292.6,1.13884477]
[1725699101905,0.43625,2292.6,2292.5,0.7738]
[1725699103601,0.43629,2292.4,2292.2,1.13884477]
[1725699103803,1.18464,2292.7,2292.4,0.43627]
[1725699104004,3.64402,2292.8,2292.5,0.43626]
[1725699104509,3.2078,2292.8,2292.7,0.43623]
[1725699104711,3.2078,2292.8,2292.6,0.80334]
[1725699104902,3.2078,2292.8,2292.7,0.7451]
[1725699105303,3.2078,2292.8,2292.7,1.18133]
[1725699105504,0.43617,2293.0,2292.7,1.18133]
[1725699105706,0.01604169,2292.9,2292.7,1.18133]
[1725699105907,0.45223169,2292.9,2292.7,1.18133]
[1725699106107,0.43619,2292.9,2292.7,1.18133]
[1725699106911,0.43619,2292.9,2292.7,0.7451]
[1725699107416,0.43621,2292.8,2292.7,0.7451]
[1725699109614,0.45225265,2292.8,2292.7,0.7451]
[1725699109915,0.45225265,2292.8,2292.7,0.363]
[1725699110914,0.43621,2292.8,2292.7,0.363]
[1725699111215,0.45225268,2292.8,2292.7,0.363]
[1725699112616,0.43621,2292.8,2292.7,0.363]
[1725699113013,3.2078,2293.0,2292.7,0.79922]
[1725699113312,0.43618,2293.0,2292.7,0.79922]
[1725699113518,0.43618,2293.0,2292.7,1.93806477]
[1725699114209,0.43619,2292.9,2292.7,1.93806477]
[1725699114425,0.43619,2292.9,2292.7,1.50184477]
[1725699114620,0.43619,2292.9,2292.7,0.363]
[1725699115224,0.43621,2292.8,2292.7,0.363]
[1725699117518,0.43623,2292.7,2292.6,0.3671]
[1725699122730,1.52687,2292.6,2292.5,0.3726]
[1725699122929,0.43634,2292.1,2292.0,4.197]
[1725699123124,0.43633,2292.2,2291.9,1.19497]
[1725699124431,0.43633,2292.2,2292.0,0.364]
[1725699124826,0.43633,2292.2,2292.0,0.80036]
[1725699125426,0.43633,2292.2,2292.0,1.93920477]
[1725699125828,3.2078,2292.4,2292.0,1.50284477]
[1725699125829,0.4363,2292.4,2292.0,1.50284477]
[1725699126028,0.43628,2292.5,2292.3,0.43629]
[1725699126243,0.43628,2292.5,2292.4,1.1135]
[1725699126740,4.2984,2292.7,2292.6,0.43625]
[1725699126741,3.2078,2292.7,2292.6,0.43625]
[1725699127034,0.43619,2292.9,2292.7,0.43622]
[1725699127236,0.43619,2292.9,2292.8,0.3654]
[1725699127434,0.43619,2292.9,2292.8,1.1135]
[1725699129440,0.43619,2292.9,2292.8,0.7481]
[1725699130538,0.43618,2293.0,2292.8,0.7481]
[1725699130836,0.43618,2293.0,2292.7,0.43623]
[1725699131039,0.43619,2292.9,2292.6,0.43624]
[1725699131441,0.43619,2292.9,2292.7,0.3707]
[1725699131743,0.43618,2293.0,2292.7,0.80693]
[1725699131937,3.64396,2293.1,2292.8,0.8116]
[1725699132543,0.43617,2293.0,2292.8,0.8116]
[1725699132744,0.43614,2293.2,2292.8,0.3754]
[1725699133135,0.43614,2293.2,2292.9,0.43618]
[1725699133337,0.43615,2293.1,2293.0,0.3704]
[1725699133536,0.43615,2293.2,2293.0,0.7439]
[1725699134036,0.43615,2293.1,2293.0,0.7439]
[1725699136845,1.26,2293.1,2292.6,3.2078]
[1725699137038,0.43622,2292.8,2292.7,1.1342]
[1725699137840,0.43622,2292.8,2292.7,0.7401]
[1725699140844,0.43622,2292.8,2292.7,0.3764]
[1725699141044,0.43622,2292.8,2292.5,0.79606]
[1725699141240,2.72305,2293.0,2292.5,1.86118485]
[1725699141241,0.43625,2292.6,2292.5,1.86118485]
[1725699141540,0.43624,2292.7,2292.5,2.29744485]
[1725699141740,0.43624,2292.7,2292.5,0.7233]
[1725699142138,0.43627,2292.5,2292.4,1.13788485]
[1725699142445,0.4363,2292.4,2292.2,1.86118485]
[1725699142641,0.4363,2292.3,2292.2,1.86118485]
[1725699143245,0.4363,2292.3,2292.2,0.7233]
[1725699144145,0.4363,2292.4,2292.2,0.7233]
[1725699144449,0.4363,2292.4,2292.2,1.86118485]
[1725699145447,0.4363,2292.4,2292.2,0.7233]
[1725699145746,0.4363,2292.4,2292.2,1.86118485]
[1725699146143,0.4363,2292.4,2292.2,0.7233]
[1725699147245,0.4363,2292.4,2292.2,1.86118485]
[1725699147545,0.4363,2292.4,2292.2,0.7233]
[1725699147754,0.4363,2292.4,2292.2,1.15962]
[1725699147945,0.4363,2292.4,2292.2,0.7233]
[1725699148744,0.4363,2292.4,2292.2,1.15962]
[1725699149847,0.4363,2292.4,2292.3,0.3908]
[1725699153950,3.09325,2292.6,2292.2,0.7233]
[1725699153951,0.4363,2292.3,2292.2,0.7233]
[1725699154555,0.4363,2292.4,2292.2,1.15962]
[1725699154754,0.4363,2292.3,2292.2,0.7233]
[1725699158654,0.7977,2292.3,2292.2,0.7233]
[1725699160550,4.29849,2292.5,2292.2,0.7233]
[1725699160853,0.43629,2292.4,2292.2,0.7233]
[1725699168161,0.4363,2292.3,2292.2,0.7233]
[1725699181172,0.4363,2292.4,2292.2,0.7233]
[1725699181364,0.4363,2292.3,2292.2,0.7233]
[1725699182780,0.4363,2292.4,2292.2,0.7233]
[1725699183073,4.8371,2292.5,2292.2,0.7233]
[1725699183280,0.4363,2292.3,2292.2,0.7233]
[1725699183776,0.4363,2292.3,2292.2,1.86118485]
[1725699183976,0.4363,2292.3,2292.2,0.7233]
[1725699187584,0.4523465,2292.3,2292.2,0.7233]
[1725699187887,1.1068365,2292.3,2292.0,1.13788485]
[1725699188080,0.43634,2292.1,2292.0,1.91398485]
[1725699188580,0.43634,2292.1,2292.0,6.27718485]
[1725699189379,0.43632,2292.3,2292.0,6.27718485]
[1725699189574,3.6441,2292.4,2292.2,1.57420485]
[1725699189781,3.6441,2292.4,2292.3,0.748]
[1725699192885,3.6441,2292.4,2292.3,4.06879707]
[1725699193383,3.6441,2292.4,2292.3,1.88588485]
[1725699193583,3.6441,2292.4,2292.3,4.06882857]
[1725699194391,3.2078,2292.4,2292.3,4.50512857]
[1725699194593,0.43627,2292.5,2292.3,6.21440388]
[1725699194793,0.43627,2292.5,2292.4,1.14033288]
[1725699195688,0.43627,2292.5,2292.3,2.32463288]
[1725699196290,0.43627,2292.5,2292.4,0.3735]
[1725699196485,0.43627,2292.5,2292.4,1.51383288]
[1725699198186,0.43627,2292.5,2292.4,0.3735]
[1725699198388,0.43627,2292.5,2292.4,1.51383288]
[1725699199093,0.43627,2292.5,2292.4,0.3735]
[1725699199796,0.43627,2292.5,2292.4,1.51383288]
[1725699199994,0.43627,2292.5,2292.4,0.3735]
[1725699205098,0.43628,2292.4,2292.3,1.88833288]
[1725699205294,0.81038,2292.4,2292.3,0.748]
[1725699205489,0.81038,2292.4,2292.3,1.88833288]
[1725699205689,0.81038,2292.4,2292.3,0.748]
[1725699206195,0.81038,2292.4,2292.3,1.88833288]
[1725699206700,0.81038,2292.4,2292.3,0.748]
[1725699212299,4.01818,2292.4,2292.3,0.748]
[1725699215716,0.81038,2292.4,2292.3,0.748]
[1725699216606,0.43628,2292.4,2292.3,0.748]
[1725699216810,0.43628,2292.5,2292.3,1.88833288]
[1725699217402,0.43628,2292.5,2292.3,2.32463288]
[1725699218609,0.43628,2292.5,2292.4,1.14033288]
[1725699218909,0.43628,2292.5,2292.3,2.32463288]
[1725699222524,0.43628,2292.5,2292.3,1.88833288]
[1725699222923,0.43628,2292.5,2292.3,2.32463288]
[1725699223223,0.43628,2292.5,2292.3,1.1843]
[1725699223423,0.43628,2292.5,2292.3,0.748]
[1725699224723,0.43628,2292.5,2292.3,1.1843]
[1725699226023,0.43628,2292.5,2292.3,0.748]
[1725699227923,0.43628,2292.4,2292.3,0.748]
[1725699230137,0.43628,2292.4,2292.3,4.07130384]
[1725699231028,0.43628,2292.4,2292.3,1.88833288]
[1725699231436,0.43628,2292.4,2292.3,4.07131065]
[1725699231739,0.43628,2292.4,2292.3,1.88833288]
[1725699236140,0.43628,2292.5,2292.3,4.63783242]
[1725699236341,0.43628,2292.5,2292.4,1.13893066]
[1725699236732,0.43628,2292.5,2292.3,3.59375794]
[1725699236937,0.43628,2292.4,2292.3,1.88693066]
[1725699238138,0.43628,2292.4,2292.3,0.748]
[1725699239943,0.43628,2292.5,2292.3,1.1843]
[1725699241440,0.43628,2292.5,2292.3,0.748]
[1725699241640,0.43628,2292.4,2292.3,0.748]
[1725699241845,0.43627,2292.5,2292.3,1.1843]
[1725699242346,0.43627,2292.5,2292.3,0.748]
[1725699242650,0.43628,2292.4,2292.3,0.748]
[1725699245147,0.43628,2292.4,2292.3,4.0699119]
[1725699245349,0.43628,2292.4,2292.3,1.88693066]
[1725699245552,0.43628,2292.4,2292.3,4.0699141]
[1725699246148,1.20179416,2293.2,2292.5,0.43627]
[1725699246357,10.02276962,2293.4,2293.1,0.43615]
[1725699246539,10.02276962,2293.4,2293.2,1.1037]
[1725699246851,0.43611,2293.3,2293.2,1.1037]
[1725699248146,0.45214894,2293.3,2293.2,1.1037]
[1725699250053,0.43611,2293.3,2293.2,1.1037]
[1725699250259,0.45214923,2293.3,2293.2,1.1037]
[1725699251153,1.71214923,2293.3,2293.2,1.1037]
[1725699254248,1.71214894,2293.3,2293.2,1.1037]
[1725699255357,1.71214928,2293.3,2293.2,1.1037]
[1725699255858,1.09037,2293.2,2292.5,3.2078]
[1725699256051,0.43619,2292.9,2292.8,0.7352]
[1725699256647,4.79779,2292.9,2292.8,0.7352]
[1725699256847,4.79779,2292.9,2292.7,0.381]
[1725699256848,0.43621,2292.8,2292.7,0.381]
[1725699257048,1.69621,2292.8,2292.7,0.381]
[1725699258549,0.43623,2292.7,2292.6,0.3637]
[1725699259856,10.37764388,2292.7,2292.0,4.197]
[1725699260066,1.26,2292.1,2291.8,1.1026]
[1725699260266,1.69635,2292.1,2291.8,1.1026]
[1725699260754,0.43635,2292.1,2291.8,1.1026]
[1725699263061,1.69633,2292.2,2291.8,1.53899]
[1725699265055,0.43634,2292.1,2291.8,1.53899]
[1725699268859,0.43635,2292.1,2291.8,1.53899]
[1725699269366,0.43636,2292.0,2291.8,1.53899]
[1725699273770,0.43635,2292.1,2291.9,0.43637]
[1725699275673,1.26,2292.2,2291.8,1.1026]
[1725699275674,0.43636,2292.0,2291.8,1.53899]
[1725699279775,0.01604766,2291.9,2291.8,1.53899]
[1725699280880,0.01604764,2291.9,2291.8,1.53899]
[1725699281280,0.43636,2292.0,2291.8,1.53899]
[1725699284981,0.01604778,2291.9,2291.8,1.53899]
[1725699285382,0.43636,2292.0,2291.8,1.53899]
[1725699285776,0.01604778,2291.9,2291.8,1.53899]
[1725699286687,0.43636,2292.0,2291.8,1.53899]
[1725699286980,0.43623,2292.7,2292.4,0.43628]
[1725699287180,0.43622,2292.8,2292.5,1.55516]
[1725699287381,0.43622,2292.8,2292.5,1.1189]
[1725699287576,0.43623,2292.7,2292.5,1.1189]
[1725699289891,1.26,2293.0,2292.5,1.1189]
[1725699290185,0.43619,2292.9,2292.5,1.1189]
[1725699290386,1.26,2293.0,2292.7,0.43622]
[1725699290387,0.43618,2293.0,2292.7,0.43622]
[1725699290578,0.43616,2293.1,2292.8,0.43621]
[1725699290774,0.43616,2293.1,2292.9,0.7481]
[1725699291287,0.43616,2293.1,2293.0,0.3594]
[1725699292783,0.43617,2293.0,2292.9,0.7481]
[1725699292980,0.43617,2293.0,2292.9,0.389]
[1725699293184,0.43617,2293.0,2292.7,0.3718]
[1725699293377,0.43617,2293.0,2292.7,1.20022]
[1725699295385,4.51713704,2293.3,2292.2,0.91825985]
[1725699295386,4.4678,2292.8,2292.2,0.91825985]
[1725699295683,1.26,2292.3,2291.7,3.2078]
[1725699295884,0.43635,2292.1,2291.7,3.9867]
[1725699296085,1.26,2292.3,2291.7,3.9867]
[1725699296280,2.18083,2293.1,2291.7,3.9867]
[1725699296281,3.2078,2292.8,2292.2,1.26]
[1725699296480,3.2078,2292.8,2292.3,1.60389]
[1725699296683,3.64401,2292.8,2292.3,1.1676]
[1725699296892,3.2078,2292.8,2292.3,1.1676]
[1725699297086,3.64403,2292.8,2292.3,1.1676]
[1725699297291,0.43623,2292.7,2292.3,1.1676]
[1725699297777,0.43623,2292.7,2292.3,5.53]
[1725699298577,0.43627,2292.5,2292.3,1.1676]
[1725699299385,0.43628,2292.4,2292.3,1.1676]
[1725699300093,0.43628,2292.4,2292.3,0.7789]
[1725699300487,0.43628,2292.4,2292.3,0.3885]
[1725699300884,0.43628,2292.4,2292.1,0.3855]
[1725699301089,0.43632,2292.2,2292.1,0.3855]
[1725699301985,0.43634,2292.1,2292.0,0.7429]
[1725699302986,1.09076,2292.4,2292.0,0.7429]
[1725699303593,1.09076,2292.4,2292.1,0.3902]
[1725699303795,0.43634,2292.2,2292.1,0.3902]
[1725699306990,0.43631,2292.3,2292.1,0.3902]
[1725699307890,0.43632,2292.2,2292.1,0.3902]
[1725699308894,0.45236676,2292.2,2292.1,0.3902]
[1725699309686,0.45236675,2292.2,2292.1,0.3902]
[1725699311092,0.43632,2292.2,2292.1,0.3902]
[1725699311393,0.45236646,2292.2,2292.1,0.3902]
[1725699313891,0.45236707,2292.2,2292.1,0.3902]
[1725699314094,0.45236665,2292.2,2292.1,0.3902]
[1725699314293,0.4523666,2292.2,2292.1,0.3902]
[1725699314887,0.43632,2292.2,2292.1,0.3902]
[1725699315098,0.45236671,2292.2,2292.1,0.3902]
[1725699315999,3.2078,2292.8,2292.1,10.9804]
[1725699316299,0.43625,2292.6,2292.1,6.618]
[1725699316501,3.2078,2292.8,2292.1,6.618]
[1725699316694,0.43625,2292.6,2292.3,0.4363]
[1725699316998,0.43625,2292.6,2292.4,0.3698]
[1725699317187,0.43625,2292.6,2292.5,0.3898]
[1725699321301,4.29835,2292.8,2292.5,0.3898]
[1725699321695,0.43625,2292.6,2292.5,0.3898]
[1725699322406,0.43625,2292.6,2292.4,0.7342]
[1725699322407,0.43627,2292.5,2292.4,0.7342]
[1725699322605,4.73474,2292.5,2292.4,0.3698]
[1725699322802,4.75078637,2292.5,2292.4,0.3698]
[1725699323503,9.11318637,2292.5,2292.4,0.3698]
[1725699323699,9.09714,2292.5,2292.4,0.3698]
[1725699323901,9.11318599,2292.5,2292.4,0.3698]
[1725699324104,4.73474,2292.5,2292.4,0.3698]
[1725699324604,9.09714,2292.5,2292.4,0.3698]
[1725699325008,5.88934,2292.5,2292.4,0.3698]
[1725699325509,9.09714,2292.5,2292.4,0.3698]
[1725699326601,5.88934,2292.5,2292.4,0.3698]
[1725699327002,1.52694,2292.5,2292.4,0.3698]
[1725699327304,4.73474,2292.5,2292.4,0.3698]
[1725699327614,1.52694,2292.5,2292.4,0.3698]
[1725699327804,4.73474,2292.5,2292.4,0.3698]
[1725699328209,1.52694,2292.5,2292.4,0.3698]
[1725699334414,1.527,2292.4,2292.3,0.3741]
[1725699339720,0.43632,2292.2,2292.1,0.3684]
[1725699339916,0.4523671,2292.2,2292.1,0.3684]
[1725699341010,0.4523671,2292.2,2292.1,0.7516]
[1725699342617,3.2078,2292.6,2292.1,8.134]
[1725699342818,0.01604404,2292.5,2292.3,0.43629]
[1725699343135,0.43625,2292.6,2292.4,0.3591]
[1725699343423,0.43625,2292.6,2292.5,0.361]
[1725699343618,0.45229419,2292.6,2292.5,0.361]
[1725699344207,1.54291419,2292.6,2292.5,0.361]
[1725699344929,1.52694,2292.5,2292.4,0.3591]
[1725699345114,1.54298419,2292.5,2292.4,0.3591]
[1725699346527,1.52694,2292.5,2292.4,0.3591]
[1725699348416,0.43627,2292.5,2292.4,0.3591]
[1725699349316,3.2078,2292.8,2292.4,0.3591]
[1725699349624,0.43625,2292.6,2292.5,0.3759]
[1725699349811,3.2078,2292.8,2292.5,0.3759]
[1725699349812,0.43625,2292.7,2292.5,0.3759]
[1725699350016,0.43625,2292.7,2292.6,0.3878]
[1725699354018,0.45229483,2292.7,2292.6,0.3878]
[1725699354524,0.43625,2292.7,2292.6,0.3878]
[1725699358027,0.43623,2292.7,2292.6,0.3878]
[1725699361729,0.45227389,2292.7,2292.6,0.3878]
[1725699362926,0.01604389,2292.7,2292.6,0.3878]
[1725699363332,0.01604389,2292.7,2292.6,4.7494]
[1725699363521,0.45568477,2294.2,2292.6,4.7494]
[1725699363522,3.97392044,2293.6,2292.6,16.9772]
[1725699363827,0.01603881,2293.5,2293.3,0.43611]
[1725699364016,4.40998044,2293.6,2293.4,1.134]
[1725699364221,0.45211611,2293.5,2293.4,1.134]
[1725699364430,0.01603611,2293.5,2293.4,1.134]
[1725699364732,0.45211611,2293.5,2293.4,1.134]
[1725699367225,0.45211822,2293.5,2293.4,1.134]
[1725699369632,0.43608,2293.5,2293.4,1.134]
[1725699370632,3.64387,2293.6,2293.4,1.134]
[1725699371429,0.43608,2293.5,2293.4,1.134]
[1725699373237,0.43608,2293.5,2293.4,0.3805]
[1725699373637,0.45211866,2293.5,2293.4,0.3805]
[1725699375536,0.45211829,2293.5,2293.4,0.3805]
[1725699376638,0.43608,2293.5,2293.4,0.3805]
[1725699382738,3.2078,2293.6,2293.4,0.3805]
[1725699382941,0.76612044,2294.0,2293.5,5.62]
[1725699383134,1.20211044,2294.0,2293.6,0.81274]
[1725699383335,0.436,2293.9,2293.6,0.81274]
[1725699383535,1.20211044,2294.0,2293.6,0.81274]
[1725699383731,0.436,2293.9,2293.6,0.81274]
[1725699384140,1.85610044,2294.0,2293.6,0.3767]
[1725699384443,0.43604,2293.7,2293.6,0.3767]
[1725699385039,0.43603,2293.8,2293.6,0.3767]
[1725699385238,4.66451,2293.9,2293.6,0.3767]
[1725699385545,0.43602,2293.8,2293.6,0.3767]
[1725699385944,0.43602,2293.8,2293.7,0.3627]
[1725699387834,3.64381,2293.9,2293.7,0.3627]
[1725699388164,3.64381,2293.9,2293.8,0.3819]
[1725699388335,3.2078,2293.9,2293.8,0.3819]
[1725699389742,3.2078,2293.9,2293.8,4.7411]
[1725699390442,3.6438,2293.9,2293.8,0.3819]
[1725699391441,3.2078,2293.9,2293.8,0.3819]
[1725699391852,3.22383466,2293.9,2293.8,0.3819]
[1725699392150,3.22383472,2293.9,2293.8,0.3819]
[1725699392943,3.65983472,2293.9,2293.8,0.3819]
[1725699393237,3.22383472,2293.9,2293.8,0.3819]
[1725699393443,3.65983472,2293.9,2293.8,0.3819]
[1725699396446,3.6438,2293.9,2293.8,0.3819]
[1725699396641,3.65983447,2293.9,2293.8,0.3819]
[1725699399154,3.22383447,2293.9,2293.8,0.3819]
[1725699399354,3.65983447,2293.9,2293.8,0.3819]
[1725699399852,3.6438,2293.9,2293.8,0.3819]
[1725699400353,3.2078,2293.9,2293.8,0.3819]
[1725699400548,3.6438,2293.9,2293.8,0.3819]
[1725699400753,3.2078,2293.9,2293.8,0.3819]
[1725699400952,3.6438,2293.9,2293.8,0.3819]
[1725699401550,0.436,2293.9,2293.8,0.3819]
[1725699401751,0.80189,2294.0,2293.8,0.3819]
[1725699403558,0.436,2293.9,2293.8,0.3819]
[1725699405057,0.80189,2294.0,2293.8,0.3819]
[1725699407653,0.436,2293.9,2293.8,0.3819]
[1725699409064,0.80189,2294.0,2293.8,0.3819]
[1725699409254,0.43599,2294.0,2293.8,0.3819]
[1725699411158,0.436,2293.9,2293.8,0.3819]
[1725699422673,0.43599,2294.0,2293.8,0.3819]
[1725699422867,2.02535943,2294.5,2293.8,0.3819]
[1725699422868,3.97315943,2294.5,2293.9,5.6192]
[1725699423066,3.97315943,2294.5,2294.1,1.26]
[1725699423067,0.43593,2294.3,2294.1,1.26]
[1725699423268,0.43593,2294.3,2294.2,0.7466]
[1725699426872,5.88415,2294.3,2294.2,0.7466]
[1725699427264,1.52575,2294.3,2294.2,0.7466]
[1725699429167,0.43593,2294.3,2294.2,0.7466]
[1725699430269,0.45196254,2294.3,2294.2,0.7466]
[1725699434068,0.45196249,2294.3,2294.2,0.7466]
[1725699437270,0.43593,2294.3,2294.2,0.7466]
[1725699439983,0.43593,2294.3,2294.2,0.27536287]
[1725699444385,0.45196263,2294.3,2294.2,0.27536287]
[1725699444780,0.81276263,2294.3,2294.2,0.27536287]
[1725699446380,0.43594,2294.2,2294.1,0.3621]
[1725699448477,0.43592,2294.4,2294.1,0.3621]
[1725699448683,0.43592,2294.4,2294.1,0.79805]
[1725699448880,3.2078,2294.5,2294.2,5.9844]
[1725699449191,1.09539151,2294.9,2294.5,0.43588]
[1725699449192,1.20103576,2294.9,2294.5,0.43588]
[1725699449377,0.76521576,2294.9,2294.6,2.3826]
[1725699449578,0.76521576,2294.9,2294.6,2.81846]
[1725699450279,0.76521576,2294.9,2294.7,1.69583]
[1725699450482,0.43578,2295.1,2294.7,1.69583]
[1725699450982,0.43575,2295.3,2294.9,1.6958]
[1725699451181,0.43575,2295.3,2295.0,0.7555]
[1725699451489,0.43575,2295.2,2295.0,2.0155]
[1725699451787,0.43575,2295.2,2295.1,0.3572]
[1725699452983,3.2078,2295.8,2295.2,4.3568]
[1725699453185,1.85419576,2296.1,2295.1,6.3572]
[1725699453186,0.43563,2295.9,2295.6,1.26]
[1725699453488,1.08889,2296.3,2295.7,1.16126]
[1725699453786,0.4356,2296.0,2295.7,0.7256]
[1725699454188,0.22265166,2296.2,2295.7,0.7256]
[1725699454386,0.43569,2295.6,2295.2,1.26]
[1725699454594,0.43569,2295.6,2295.3,0.3561]
[1725699455280,0.43567,2295.7,2295.3,0.3561]
[1725699455482,0.43566,2295.7,2295.3,0.3561]
[1725699455681,0.43569,2295.6,2295.3,1.6161]
[1725699455887,0.43569,2295.6,2295.3,0.3561]
[1725699456888,3.2078,2295.9,2295.3,0.3561]
[1725699456889,1.08911,2295.8,2295.3,0.3561]
[1725699457095,0.4357,2295.5,2295.3,0.3561]
[1725699459193,1.46591,2295.8,2295.3,0.3561]
[1725699459194,0.43569,2295.6,2295.3,0.3561]
[1725699459494,0.45172284,2295.5,2295.3,0.3561]
[1725699459681,0.01602284,2295.4,2295.3,0.3561]
[1725699462896,0.4357,2295.5,2295.3,0.3561]
[1725699463093,0.01602392,2295.4,2295.3,0.3561]
[1725699466302,0.45169392,2295.7,2295.3,0.79183]
[1725699466592,0.45170392,2295.6,2295.3,0.3561]
[1725699466792,0.01602392,2295.5,2295.4,0.43571]
[1725699466994,0.43567,2295.7,2295.4,0.43571]
[1725699467192,0.01602392,2295.6,2295.3,0.79182]
[1725699467397,0.01602392,2295.6,2295.3,5.14782]
[1725699467598,0.43567,2295.7,2295.3,5.14862]
[1725699467797,0.43567,2295.7,2295.3,0.79182]
[1725699468395,0.43567,2295.7,2295.4,0.43571]
[1725699468795,0.43567,2295.7,2295.3,0.79182]
[1725699469190,0.43563,2295.9,2295.5,3.64349]
[1725699469398,0.43561,2296.0,2295.5,3.2078]
[1725699469593,0.43563,2295.9,2295.5,3.64349]
[1725699469991,0.43559,2296.1,2295.7,0.43565]
[1725699470195,0.43559,2296.1,2295.8,0.7555]
[1725699470401,0.43559,2296.1,2295.8,1.1371]
[1725699471801,0.43561,2296.0,2295.8,1.1371]
[1725699471997,0.43559,2296.1,2295.8,1.1371]
[1725699472605,3.64337,2296.2,2295.8,1.1371]
[1725699473308,3.2078,2296.2,2295.9,0.43561]
[1725699473599,3.2078,2296.2,2295.8,1.1371]
[1725699473600,0.43557,2296.2,2295.8,1.57273]
[1725699474194,0.3797,2296.4,2295.8,1.57273]
[1725699474195,0.43556,2296.3,2295.8,1.1371]
[1725699474400,0.43556,2296.2,2295.8,1.57273]
[1725699474601,0.3797,2296.4,2295.8,1.57273]
[1725699474793,0.01601988,2296.3,2295.8,1.57273]
[1725699475195,0.43557,2296.2,2295.8,1.57273]
[1725699475404,0.43555,2296.3,2295.8,1.57273]
[1725699475617,0.45158999,2296.2,2295.8,1.57273]
[1725699475900,0.3797,2296.4,2295.8,2.3971]
[1725699476103,0.45157011,2296.3,2295.9,0.43561]
[1725699476302,0.43555,2296.3,2295.9,0.43561]
[1725699477402,0.43557,2296.2,2295.8,2.83273]
[1725699477606,4.8359,2296.5,2295.8,2.3971]
[1725699477902,0.43557,2296.2,2295.8,1.57274]
[1725699478094,0.43557,2296.2,2295.8,2.83274]
[1725699478503,3.2078,2296.5,2296.0,1.69559]
[1725699478706,0.43548,2296.7,2296.3,0.43553]
[1725699479010,0.43548,2296.7,2296.4,2.80632]
[1725699479305,3.2078,2296.9,2296.5,1.26]
[1725699479500,0.4354,2297.1,2296.7,1.26]
[1725699479705,0.43536,2297.3,2296.9,1.69543]
[1725699479900,0.43536,2297.3,2297.0,1.18581]
[1725699480097,0.63705408,2297.5,2297.1,1.26]
[1725699480397,1.08821,2297.7,2297.1,1.26]
[1725699480604,0.21712594,2297.8,2297.0,4.3186]
[1725699480899,0.43536,2297.3,2297.1,1.26]
[1725699481211,0.43534,2297.4,2297.1,1.26]
[1725699481503,0.43533,2297.5,2297.1,1.69539]
[1725699481701,0.43533,2297.5,2297.1,1.26]
[1725699482002,3.2078,2297.6,2297.1,3.01]
[1725699482206,0.43529,2297.7,2297.2,0.43537]
[1725699482403,0.4353,2297.6,2297.2,0.43537]
[1725699482708,0.43529,2297.7,2297.2,0.43537]
[1725699483110,3.2078,2297.8,2297.1,3.01]
[1725699483405,0.43529,2297.7,2297.2,0.43536]
[1725699483612,0.43532,2297.5,2297.1,3.01]
[1725699483809,0.43535,2297.3,2297.0,3.9448]
[1725699484002,1.08825,2297.6,2297.0,3.9448]
[1725699484202,0.43538,2297.2,2297.0,0.737]
[1725699485208,0.43539,2297.1,2297.0,0.737]
[1725699486610,0.43539,2297.1,2297.0,0.3766]
[1725699487813,0.43543,2296.9,2296.8,3.01]
[1725699488312,0.43542,2297.0,2296.8,3.01]
[1725699488513,0.43543,2296.9,2296.8,3.01]
[1725699489508,0.43545,2296.8,2296.7,0.3828]
[1725699489707,0.43545,2296.8,2296.7,6.3828]
[1725699489910,0.320886,2298.2,2296.8,5.44221]
[1725699490108,0.320886,2298.2,2298.0,3.01]
[1725699490705,3.2078,2298.3,2298.0,3.01]